bitfinex/quotes_ETHUSD_20241120
["timestamp","ask_amount","ask_price","bid_price","bid_amount"]
[1732139625878,4.58551,3077.0,3076.5,3.25039]
[1732139626080,3.79991,3077.0,3076.6,0.10146065]
[1732139626287,3.79991,3077.0,3076.7,0.10146065]
[1732139626506,3.79991,3077.0,3076.5,3.25039]
[1732139627498,3.79991,3077.0,3076.6,0.10146213]
[1732139627721,3.79991,3077.0,3076.7,0.10146213]
[1732139628027,3.79991,3077.0,3076.5,3.25039]
[1732139628028,3.79991,3077.0,3076.8,0.10146213]
[1732139628325,3.79991,3077.0,3076.5,3.25039]
[1732139628652,3.79991,3077.0,3076.6,0.10146273]
[1732139628825,3.79991,3077.0,3076.7,0.10146273]
[1732139628990,3.79991,3077.0,3076.8,0.10146273]
[1732139629180,3.79991,3077.0,3076.9,0.10146273]
[1732139630179,4.585507,3077.0,3076.9,0.10146273]
[1732139632077,4.585507,3077.0,3076.5,3.25039]
[1732139632281,3.79991,3077.0,3076.5,3.25039]
[1732139632526,3.79991,3077.0,3076.6,0.10146417]
[1732139632816,0.55,3077.0,3076.7,0.10146417]
[1732139632979,0.55,3077.2,3076.9,0.7659]
[1732139633176,4.07005,3077.5,3077.0,0.10146417]
[1732139633177,3.24956,3077.4,3077.0,0.10146417]
[1732139633380,3.24966,3077.3,3077.1,0.10146417]
[1732139633673,3.24966,3077.3,3076.9,0.7659]
[1732139633674,0.407016,3077.3,3077.2,0.10146417]
[1732139633831,3.24956,3077.4,3077.2,0.10146417]
[1732139634124,3.24956,3077.4,3077.3,0.10146417]
[1732139634930,3.79956,3077.4,3077.3,0.10146417]
[1732139635143,4.62785698,3077.4,3077.3,0.10146417]
[1732139635282,1.37829698,3077.4,3077.3,0.10146417]
[1732139635626,0.55,3077.5,3077.3,0.10146417]
[1732139635795,0.55,3077.5,3077.4,0.10146417]
[1732139636336,0.55,3077.6,3077.4,0.10146417]
[1732139636511,0.55,3077.6,3077.5,0.10146417]
[1732139637453,0.55,3077.8,3077.5,0.10146417]
[1732139637729,0.55,3077.8,3077.6,0.10146417]
[1732139637927,0.55,3077.8,3077.7,0.10146417]
[1732139638084,0.97294615,3077.8,3077.7,0.10146417]
[1732139638728,0.97294615,3077.8,3077.7,0.10143671]
[1732139638894,0.55,3077.8,3077.7,0.10143671]
[1732139639098,4.07968,3078.1,3077.7,0.10143671]
[1732139639099,3.79888,3078.0,3077.7,0.10143671]
[1732139639298,3.79888,3078.0,3077.8,0.10143671]
[1732139639526,4.886736,3078.0,3077.5,3.24932]
[1732139639834,4.886736,3078.0,3077.6,0.10143384]
[1732139640033,4.886736,3078.0,3077.7,0.10143384]
[1732139640327,4.886736,3078.0,3077.8,0.10143384]
[1732139640522,4.886736,3078.0,3077.5,3.24932]
[1732139640739,3.24917,3077.7,3077.6,0.10143239]
[1732139640905,0.55,3077.7,3077.6,0.10143239]
[1732139641318,0.55,3077.6,3077.3,0.8078]
[1732139641734,0.55,3077.7,3077.4,3.35092786]
[1732139642038,0.55,3077.7,3077.5,0.10143786]
[1732139642203,0.55,3077.7,3077.6,0.10143786]
[1732139643143,7.33454567,3077.7,3077.6,0.10143786]
[1732139643302,1.87792031,3077.7,3077.6,0.10144184]
[1732139643506,1.87792031,3077.7,3077.2,3.24963]
[1732139643723,5.12710031,3077.7,3077.3,0.10144166]
[1732139643936,5.12710031,3077.7,3077.4,0.10144166]
[1732139644142,0.55,3077.7,3077.5,0.10144166]
[1732139644460,3.24921,3077.7,3077.2,3.24963]
[1732139644734,0.55,3077.6,3077.2,3.24963]
[1732139644931,0.55,3077.6,3077.3,0.10144247]
[1732139645146,4.504128,3077.6,3077.3,0.10144247]
[1732139645307,3.24939,3077.5,3077.4,0.10144247]
[1732139645637,3.24939,3077.5,3077.2,0.10144247]
[1732139645812,0.55,3077.7,3077.3,0.10144247]
[1732139646017,3.24928,3077.6,3077.3,0.10144247]
[1732139646200,3.24928,3077.6,3077.1,3.2498]
[1732139646201,3.24928,3077.6,3077.4,0.10144247]
[1732139646406,3.24928,3077.6,3077.1,3.2498]
[1732139646649,3.24928,3077.6,3077.2,0.10144444]
[1732139646845,3.24928,3077.6,3077.3,0.10144444]
[1732139647000,3.24928,3077.6,3077.4,0.10144444]
[1732139647206,3.24928,3077.6,3077.1,3.2498]
[1732139647418,3.24928,3077.6,3077.2,0.10144325]
[1732139647616,3.24928,3077.6,3077.3,0.10144325]
[1732139647818,3.24928,3077.6,3077.4,0.10144325]
[1732139648052,3.24928,3077.6,3077.1,3.2498]
[1732139648437,3.24928,3077.6,3077.2,0.10144379]
[1732139648636,4.00843754,3077.6,3077.3,0.10144379]
[1732139648851,4.00843754,3077.6,3077.0,4.06633]
[1732139648852,0.756,3077.4,3077.0,4.06641]
[1732139649056,0.756,3077.4,3077.1,0.10144769]
[1732139649256,0.756,3077.4,3077.2,0.10144769]
[1732139649549,1.306,3077.4,3077.3,0.10144769]
[1732139649723,4.55549,3077.4,3077.3,0.10144769]
[1732139649925,5.78240713,3077.4,3077.3,0.10144769]
[1732139650822,4.55549,3077.4,3077.3,0.10144769]
[1732139651413,4.55549,3077.4,3077.0,0.8165]
[1732139651614,4.55549,3077.4,3077.1,0.10144994]
[1732139651855,4.55549,3077.4,3077.2,0.10144994]
[1732139652006,0.55,3077.4,3077.3,0.10144994]
[1732139652213,3.79935,3077.6,3077.3,0.10144994]
[1732139652414,4.16732315,3077.6,3077.4,0.10144994]
[1732139652630,3.79935,3077.6,3077.5,0.10144994]
[1732139652879,0.55,3077.6,3077.5,0.10144994]
[1732139653244,3.79928,3077.6,3077.5,0.10144994]
[1732139653452,4.261438,3077.6,3077.0,4.06631]
[1732139653664,3.79928,3077.6,3077.1,0.1014477]
[1732139653866,3.79928,3077.6,3077.2,0.1014477]
[1732139654068,3.79928,3077.6,3077.3,0.1014477]
[1732139654265,4.586356,3077.6,3077.4,0.1014477]
[1732139654579,3.79928,3077.6,3077.5,0.10144635]
[1732139654732,4.22977152,3077.6,3077.5,0.10144635]
[1732139655085,3.2495,3077.4,3077.0,4.06639]
[1732139655240,3.2495,3077.4,3077.1,0.10144744]
[1732139655445,3.2495,3077.4,3077.2,0.10144744]
[1732139655748,3.2495,3077.4,3077.3,0.10144744]
[1732139655749,4.63043967,3077.4,3077.3,0.10144744]
[1732139655951,3.7995,3077.4,3077.3,0.10144744]
[1732139656373,0.55,3077.1,3076.8,0.8049]
[1732139656537,0.55,3077.1,3076.7,3.25023]
[1732139656538,3.79982,3077.1,3076.9,0.10145768]
[1732139656879,3.79982,3077.1,3077.0,0.10145768]
[1732139657187,0.55,3077.2,3077.0,0.10145768]
[1732139657342,0.55,3077.2,3077.1,0.10145768]
[1732139657539,0.8026,3077.4,3077.1,0.90035768]
[1732139657540,0.55,3077.4,3077.1,0.90035768]
[1732139657744,0.929945,3077.4,3077.2,0.10145768]
[1732139657941,4.179435,3077.4,3077.3,0.10145768]
[1732139658172,3.79949,3077.4,3077.3,0.10145768]
[1732139658679,3.79935,3077.6,3077.1,0.7989]
[1732139658850,1.336079,3077.6,3077.3,0.10144772]
[1732139659044,1.336079,3077.6,3077.4,0.10144897]
[1732139659344,0.55,3077.8,3077.5,0.1014462]
[1732139659552,0.55,3077.8,3077.3,3.24953]
[1732139659792,1.3403,3077.6,3077.4,0.10144363]
[1732139659951,3.79939,3077.5,3077.1,0.7989]
[1732139660162,0.55,3077.4,3077.2,0.10144709]
[1732139660356,0.55,3077.4,3077.3,0.10144709]
[1732139661448,3.79949,3077.4,3077.3,0.10144709]
[1732139661792,5.06909546,3077.4,3077.3,0.10144709]
[1732139662648,1.81960546,3077.4,3076.9,0.8154]
[1732139662843,3.24965,3077.3,3077.0,0.1014571]
[1732139663064,4.63861394,3077.4,3077.1,0.1014571]
[1732139663389,3.7995,3077.4,3077.2,0.1014571]
[1732139663586,4.583408,3077.4,3077.3,0.1014571]
[1732139664815,4.583408,3077.4,3076.9,0.8154]
[1732139665016,3.24961,3077.3,3076.9,0.8154]
[1732139665309,3.24961,3077.3,3077.0,0.10145325]
[1732139665461,3.24961,3077.3,3077.1,0.10145325]
[1732139665659,3.79961,3077.3,3077.2,0.10145325]
[1732139666978,4.18188183,3077.3,3077.2,0.10145325]
[1732139669011,4.18188183,3077.3,3076.7,4.03805]
[1732139669223,3.79961,3077.3,3077.2,0.10145408]
[1732139669382,7.04928,3077.3,3077.2,0.10145408]
[1732139670128,7.85508,3077.3,3077.2,0.10145408]
[1732139670284,3.24996,3077.0,3076.7,0.7879]
[1732139670621,0.55,3076.9,3076.8,0.10146319]
[1732139671805,3.24996,3077.0,3076.7,0.7879]
[1732139671806,0.55,3077.1,3076.7,0.7879]
[1732139672012,0.55,3077.1,3076.8,0.10145923]
[1732139672324,6.49887,3077.5,3077.1,0.8281]
[1732139672494,3.24939,3077.5,3077.2,0.10145923]
[1732139672703,3.24924,3077.7,3077.3,0.10145923]
[1732139673000,4.01031,3077.8,3077.4,0.10145923]
[1732139673207,0.7612,3078.1,3077.5,3.35080923]
[1732139673387,3.24892,3078.0,3077.6,0.92955923]
[1732139673590,3.24892,3078.0,3077.7,0.10145923]
[1732139673811,3.24892,3078.0,3077.8,0.10145923]
[1732139674000,1.19169152,3078.3,3077.9,0.10145923]
[1732139674253,3.67914152,3078.2,3077.6,0.8281]
[1732139674537,3.2488,3078.1,3077.7,0.1014349]
[1732139674700,3.2488,3078.1,3077.8,0.1014349]
[1732139674701,4.01771415,3078.1,3077.8,0.1014349]
[1732139675030,4.01771415,3078.1,3077.0,4.60528276]
[1732139675031,3.24978,3077.2,3076.9,0.8281]
[1732139675239,0.55,3077.1,3077.0,0.10145955]
[1732139675388,4.23030152,3077.1,3077.0,0.10145955]
[1732139676414,3.79981,3077.1,3077.0,0.10145955]
[1732139677127,3.79981,3077.1,3077.0,0.10146015]
[1732139678396,3.79981,3077.1,3076.6,4.07843]
[1732139678644,3.79981,3077.1,3077.0,0.10146111]
[1732139678801,3.79981,3077.1,3077.0,0.1014606]
[1732139679010,3.2496,3077.3,3077.1,0.7968]
[1732139679209,0.55,3077.2,3077.1,0.7968]
[1732139679530,3.79965,3077.3,3077.1,0.89825531]
[1732139679829,3.79965,3077.3,3077.2,0.10145531]
[1732139680936,0.55,3077.3,3077.2,0.10145531]
[1732139681497,0.803,3077.7,3077.2,0.10145531]
[1732139681498,0.55,3077.6,3077.2,0.10145531]
[1732139681696,3.24924,3077.7,3077.1,8.66338349]
[1732139681927,3.24924,3077.7,3077.3,0.10144553]
[1732139682129,3.24903,3077.9,3077.3,0.10144553]
[1732139682130,3.24903,3077.9,3077.3,3.24959]
[1732139682431,3.24903,3077.9,3077.4,0.8023]
[1732139682639,0.76968557,3078.0,3077.5,3.35072768]
[1732139682938,3.24884,3078.1,3077.6,3.35070768]
[1732139683240,3.24884,3078.1,3077.7,0.10143768]
[1732139683412,3.24884,3078.1,3077.8,0.10143768]
[1732139683606,3.24884,3078.1,3077.6,3.24927]
[1732139683842,3.75811205,3078.1,3077.7,0.10143305]
[1732139683996,3.75811205,3078.1,3077.8,0.10143305]
[1732139684196,0.55,3078.0,3077.6,3.24927]
[1732139684426,0.55,3078.0,3077.7,0.10143386]
[1732139684632,0.55,3078.2,3077.9,0.8191]
[1732139684806,0.8076,3078.6,3077.9,4.06804]
[1732139685007,3.2484,3078.5,3078.0,0.10142353]
[1732139685224,3.2484,3078.5,3077.9,4.06804]
[1732139685225,3.24861,3078.3,3078.1,0.10142353]
[1732139685439,0.36791015,3078.2,3077.9,0.8191]
[1732139685652,0.36791015,3078.2,3078.0,0.10142284]
[1732139685859,0.43049152,3078.4,3077.9,4.06806]
[1732139686021,3.2486,3078.3,3078.0,0.10142361]
[1732139686222,0.55,3078.2,3077.9,0.8191]
[1732139686543,0.55,3078.2,3078.0,0.10142188]
[1732139686740,0.55,3078.2,3077.9,0.8191]
[1732139686929,0.55,3078.3,3078.0,0.1014217]
[1732139687267,3.67893152,3078.4,3078.0,0.1014217]
[1732139687268,0.55,3078.4,3078.0,3.24886]
[1732139688218,3.24854,3078.3,3077.9,0.8191]
[1732139688423,3.24877,3078.1,3077.9,0.8191]
[1732139688920,3.67903152,3078.3,3077.9,0.8191]
[1732139689334,3.24888,3078.0,3077.6,0.7963]
[1732139689533,3.24888,3078.0,3077.7,0.10142908]
[1732139689753,3.24888,3078.0,3077.6,0.7963]
[1732139689754,3.24888,3078.0,3077.8,0.10142908]
[1732139689927,3.24888,3078.0,3077.6,0.7963]
[1732139690129,3.24888,3078.0,3077.7,0.1014337]
[1732139690320,3.24888,3078.0,3077.8,0.1014337]
[1732139690570,3.24896,3077.9,3077.6,0.7963]
[1732139690716,0.55,3077.9,3077.6,0.7963]
[1732139690921,3.24923,3077.7,3077.3,0.7963]
[1732139691116,3.24923,3077.7,3077.4,0.10144084]
[1732139691356,3.2491,3077.8,3077.5,0.10144084]
[1732139691660,0.55,3077.7,3077.3,4.04588]
[1732139691816,0.55,3077.8,3077.3,0.7963]
[1732139692019,3.24918,3077.7,3077.4,0.101442]
[1732139692219,3.24918,3077.7,3077.5,0.101442]
[1732139693254,3.24918,3077.7,3077.4,0.10144234]
[1732139693464,3.24918,3077.7,3077.5,0.10144234]
[1732139693663,3.24918,3077.7,3077.3,0.7963]
[1732139693824,3.24918,3077.7,3077.4,0.10143947]
[1732139694168,3.24918,3077.7,3077.5,0.10143947]
[1732139694318,3.24918,3077.7,3077.3,0.7963]
[1732139694518,3.24918,3077.7,3077.4,0.10143961]
[1732139694747,3.24918,3077.7,3077.5,0.10143961]
[1732139695051,3.24918,3077.7,3077.3,0.7963]
[1732139695357,3.79908,3077.8,3077.4,0.10143961]
[1732139695667,3.79908,3077.8,3077.5,0.10143961]
[1732139695966,3.79908,3077.8,3077.3,4.04589]
[1732139696119,3.24872,3078.2,3077.5,0.7963]
[1732139696429,0.7914,3078.4,3077.6,0.1014388]
[1732139696635,3.24892,3078.0,3077.7,0.1014388]
[1732139696864,3.24892,3078.0,3077.5,0.7963]
[1732139697069,3.24892,3078.0,3077.6,0.10143022]
[1732139697070,3.24898,3077.9,3077.6,0.10143022]
[1732139697363,3.24886,3078.0,3077.7,0.10143142]
[1732139697533,6.4978,3078.0,3077.5,4.04567]
[1732139697730,3.24886,3078.0,3077.6,0.10143379]
[1732139698054,3.24886,3078.0,3077.7,0.10143379]
[1732139698359,3.24886,3078.0,3077.5,4.04567]
[1732139698571,3.24886,3078.0,3077.6,0.10143295]
[1732139698723,3.24902,3077.9,3077.6,0.10143295]
[1732139698924,3.24902,3077.9,3077.7,0.10143295]
[1732139699224,3.24886,3078.0,3077.5,4.04569]
[1732139699442,3.24886,3078.0,3077.6,0.10143142]
[1732139699637,3.24886,3078.0,3077.7,0.10143142]
[1732139700049,3.24886,3078.0,3077.5,4.04569]
[1732139700361,3.24886,3078.0,3077.6,0.10143161]
[1732139700664,3.24886,3078.0,3077.7,0.10143161]
[1732139700858,3.24886,3078.0,3077.5,4.04569]
[1732139701163,3.24886,3078.0,3077.6,0.10143116]
[1732139701521,0.55,3078.1,3077.7,0.10143116]
[1732139701654,3.79855,3078.3,3077.7,3.24916]
[1732139701851,3.79855,3078.3,3077.2,2.9607374]
[1732139701852,0.55,3078.1,3077.8,0.85502958]
[1732139702051,3.24888,3078.0,3077.8,0.7536]
[1732139702489,0.55,3078.1,3077.8,0.7536]
[1732139703279,0.55,3078.3,3077.8,0.7536]
[1732139703601,0.55,3078.1,3077.8,0.7536]
[1732139705000,3.79876,3078.1,3077.8,0.7536]
[1732139705360,3.24892,3078.0,3077.8,0.7536]
[1732139706208,0.55,3078.2,3077.8,0.7536]
[1732139706359,3.79865,3078.2,3077.9,0.10142658]
[1732139706557,3.79865,3078.2,3077.8,0.7536]
[1732139706752,0.55,3078.1,3077.9,0.10142598]
[1732139706950,0.55,3078.1,3077.8,0.7536]
[1732139707149,3.24865,3078.2,3077.9,0.10142826]
[1732139707150,0.55,3078.2,3077.9,0.10142826]
[1732139707397,3.79844,3078.4,3078.0,0.10142826]
[1732139707606,3.79844,3078.4,3078.1,0.10142826]
[1732139707901,3.79844,3078.4,3077.9,3.24896]
[1732139708053,3.79844,3078.4,3078.0,0.1014177]
[1732139708255,3.79844,3078.4,3078.1,0.1014177]
[1732139708600,3.79844,3078.4,3077.9,3.24896]
[1732139708896,6.49598,3078.9,3078.3,3.24845]
[1732139709078,3.24807,3078.8,3078.4,0.86461722]
[1732139709280,0.649598,3078.8,3078.5,0.10141722]
[1732139709488,3.24797,3078.9,3078.6,0.10141722]
[1732139709811,6.49597,3078.9,3078.4,0.7632]
[1732139709960,3.24808,3078.8,3078.5,0.10140287]
[1732139710168,3.24808,3078.8,3078.6,0.10140393]
[1732139710380,3.24808,3078.8,3078.4,0.7632]
[1732139710585,3.24808,3078.8,3078.5,0.10140327]
[1732139710766,3.24808,3078.8,3078.6,0.10140327]
[1732139711117,3.79806,3078.8,3078.4,0.7632]
[1732139711399,0.55,3078.8,3078.5,0.10140322]
[1732139711565,0.55,3078.6,3078.4,0.7632]
[1732139711898,3.79829,3078.6,3078.4,0.7632]
[1732139712105,3.24847,3078.4,3078.2,0.7632]
[1732139712410,3.24847,3078.4,3078.3,0.10141231]
[1732139712595,3.79831,3078.6,3078.3,0.10141231]
[1732139712753,3.79831,3078.6,3078.4,0.10141231]
[1732139712954,3.79831,3078.6,3078.2,0.7632]
[1732139713202,3.79831,3078.6,3078.3,0.10141155]
[1732139713353,3.79831,3078.6,3078.2,0.7632]
[1732139713551,3.79831,3078.6,3078.3,0.10141185]
[1732139713797,3.79831,3078.6,3078.2,0.7632]
[1732139713991,3.79831,3078.6,3078.3,0.10141136]
[1732139714167,3.79831,3078.6,3078.2,0.7632]
[1732139714495,3.79831,3078.6,3078.3,0.10141133]
[1732139714697,3.79831,3078.6,3078.2,0.7632]
[1732139715006,3.79831,3078.6,3078.3,0.10141061]
[1732139715224,3.79831,3078.6,3078.2,0.7632]
[1732139715360,3.79803,3078.8,3078.3,3.75108503]
[1732139715554,0.55,3078.9,3078.5,3.24827]
[1732139715901,3.79791,3078.9,3078.6,0.10141103]
[1732139716080,0.55,3078.9,3078.5,3.24827]
[1732139716287,0.55,3078.9,3078.6,0.10139972]
[1732139716539,0.55,3078.9,3078.5,3.24827]
[1732139716686,3.79792,3078.9,3078.6,0.10139971]
[1732139716898,3.24823,3078.6,3078.4,0.8094]
[1732139717198,3.79823,3078.6,3078.2,0.776]
[1732139717423,3.2484,3078.5,3078.2,0.776]
[1732139717711,3.24844,3078.4,3078.2,0.776]
[1732139717860,3.79823,3078.6,3078.2,0.776]
[1732139718067,3.79823,3078.6,3078.3,0.10141416]
[1732139718281,3.79823,3078.6,3078.4,0.10141416]
[1732139718490,3.79823,3078.6,3078.2,0.776]
[1732139718763,3.79823,3078.6,3078.3,0.10140984]
[1732139718964,3.79823,3078.6,3078.4,0.10140984]
[1732139719267,3.79823,3078.6,3078.2,0.776]
[1732139719462,3.79823,3078.6,3078.3,0.10140863]
[1732139719690,3.79823,3078.6,3078.2,0.776]
[1732139720007,3.79823,3078.6,3078.3,0.10140928]
[1732139720207,3.24796,3078.9,3078.5,0.8273]
[1732139720377,3.24788,3079.0,3078.5,0.8273]
[1732139720378,0.55,3078.8,3078.5,0.8273]
[1732139720701,3.79803,3078.8,3078.5,0.8273]
[1732139721587,0.55,3078.8,3078.2,0.7963]
[1732139721788,0.55,3078.8,3078.3,0.10140365]
[1732139721789,3.24834,3078.5,3078.3,0.10140365]
[1732139721989,3.24834,3078.5,3078.2,0.7963]
[1732139722179,3.24834,3078.5,3078.3,0.1014087]
[1732139722376,3.24834,3078.5,3078.2,0.7963]
[1732139722707,3.24834,3078.5,3078.3,0.10140993]
[1732139722915,3.24834,3078.5,3078.2,0.7963]
[1732139723100,3.24834,3078.5,3078.3,0.10140912]
[1732139723301,3.24834,3078.5,3078.2,0.7963]
[1732139723502,3.24834,3078.5,3078.3,0.10140976]
[1732139723677,3.24834,3078.5,3078.2,0.7963]
[1732139724082,3.24834,3078.5,3078.3,0.1014106]
[1732139724273,3.24834,3078.5,3078.2,0.7963]
[1732139724274,3.24834,3078.5,3078.4,0.1014106]
[1732139724909,3.24834,3078.5,3078.4,0.1014092]
[1732139725198,3.24823,3078.6,3078.4,0.10140907]
[1732139725367,3.24823,3078.6,3078.2,0.7963]
[1732139725569,3.24823,3078.6,3078.3,0.10140832]
[1732139725918,3.79809,3078.8,3078.4,0.1014044]
[1732139726212,3.79809,3078.8,3078.5,0.1014044]
[1732139726414,6.49573,3079.0,3078.4,3.24837]
[1732139726737,3.24786,3079.0,3078.5,4.13133311]
[1732139727018,3.24792,3078.9,3078.6,0.10140311]
[1732139727319,3.24792,3078.9,3078.5,0.7816]
[1732139727521,3.24786,3079.0,3078.6,0.10140411]
[1732139727663,0.55,3078.9,3078.5,0.7816]
[1732139727869,0.55,3078.9,3078.6,0.1013991]
[1732139728069,0.55,3078.9,3078.5,0.7816]
[1732139728070,0.55,3078.9,3078.7,0.1013991]
[1732139728266,0.55,3078.9,3078.5,0.7816]
[1732139728574,3.79791,3078.9,3078.6,0.10139928]
[1732139728774,3.79791,3078.9,3078.7,0.10139928]
[1732139728986,3.79791,3078.9,3078.5,0.7816]
[1732139729204,3.79791,3078.9,3078.6,0.10139937]
[1732139729478,0.55,3078.9,3078.7,0.1013989]
[1732139729688,0.55,3078.9,3078.5,0.7816]
[1732139729900,3.24777,3079.1,3078.6,0.10139875]
[1732139730208,0.55,3079.1,3078.7,0.10139875]
[1732139730369,0.55,3079.1,3078.9,0.7655]
[1732139730572,3.2477,3079.1,3078.4,3.24841]
[1732139730911,3.24802,3078.8,3078.5,0.86689638]
[1732139731101,3.24802,3078.8,3078.6,0.10139638]
[1732139731302,3.24791,3078.9,3078.6,0.10139638]
[1732139731916,3.24791,3078.9,3078.7,0.10139638]
[1732139732128,3.24801,3078.8,3078.5,0.7655]
[1732139732306,3.24801,3078.8,3078.6,0.10140102]
[1732139732505,3.24801,3078.8,3078.7,0.10140102]
[1732139732823,3.24791,3078.9,3078.5,0.7655]
[1732139732824,3.24812,3078.7,3078.5,0.7655]
[1732139732973,3.24812,3078.7,3078.6,0.10140393]
[1732139734103,3.24812,3078.7,3078.6,0.10140454]
[1732139735676,3.650821,3078.9,3078.6,0.10140454]
[1732139735972,3.24802,3078.8,3078.5,0.7655]
[1732139736176,3.24802,3078.8,3078.6,0.10140536]
[1732139736373,3.24802,3078.8,3078.7,0.10140536]
[1732139737712,3.24813,3078.7,3078.5,0.7655]
[1732139737917,3.24813,3078.7,3078.6,0.10140374]
[1732139738284,3.897734,3078.7,3078.6,0.10140374]
[1732139738480,3.24813,3078.7,3078.6,0.10140374]
[1732139740713,4.02242,3078.8,3078.2,0.7564]
[1732139740714,7.27052,3078.8,3078.3,3.24849]
[1732139740876,3.24821,3078.7,3078.6,0.10140859]
[1732139741559,3.24821,3078.7,3078.6,0.1014054]
[1732139744141,3.24842,3078.5,3078.2,0.7564]
[1732139744482,6.49683,3078.5,3078.3,0.20281746]
[1732139744786,6.49683,3078.5,3078.4,0.1014089]
[1732139745596,3.24841,3078.5,3078.4,0.1014089]
[1732139746126,3.79823,3078.6,3078.4,0.1014089]
[1732139746332,3.79823,3078.6,3078.5,0.1014089]
[1732139747243,3.79823,3078.6,3078.3,0.10140856]
[1732139747551,3.79823,3078.6,3078.4,0.10140719]
[1732139747552,3.24823,3078.6,3078.4,0.10140719]
[1732139747730,3.24823,3078.6,3078.3,0.10140856]
[1732139748207,3.24841,3078.5,3078.4,0.1014081]
[1732139749928,4.729474,3078.5,3078.4,0.1014081]
[1732139750515,4.729474,3078.5,3078.3,0.10140856]
[1732139750516,3.24844,3078.4,3078.3,0.10140856]
[1732139750713,3.24844,3078.4,3078.3,0.20282162]
[1732139751445,3.24841,3078.5,3078.3,0.20282162]
[1732139751748,3.24841,3078.5,3078.4,0.10141306]
[1732139754025,3.24841,3078.5,3078.4,0.10141268]
[1732139754242,3.24841,3078.5,3078.4,0.1014123]
[1732139760466,3.24841,3078.5,3078.4,0.10141462]
[1732139762906,3.24841,3078.5,3077.9,4.04373]
[1732139763104,3.24841,3078.5,3078.4,0.10141292]
[1732139766092,3.24841,3078.5,3077.9,4.04373]
[1732139766297,3.24841,3078.5,3078.0,0.10141197]
[1732139766498,3.24841,3078.5,3078.1,0.10141331]
[1732139766659,3.24841,3078.5,3078.2,0.10141331]
[1732139766862,3.24844,3078.4,3078.3,0.10141331]
[1732139769379,3.24844,3078.4,3077.9,5.3451137]
[1732139769586,3.24844,3078.4,3078.3,0.10141138]
[1732139771606,3.24823,3078.6,3078.3,0.87611138]
[1732139771780,3.24823,3078.6,3078.4,0.10141138]
[1732139771960,3.24823,3078.6,3078.5,0.10141138]
[1732139772376,3.79823,3078.6,3078.5,0.10141138]
[1732139772583,3.79823,3078.6,3078.3,0.7747]
[1732139772774,3.79823,3078.6,3078.4,0.10140779]
[1732139772775,3.24835,3078.5,3078.4,0.10140779]
[1732139774479,0.55,3078.6,3078.4,0.10140779]
[1732139774685,3.24759,3079.2,3078.6,4.02287]
[1732139774900,0.7503,3079.3,3078.6,4.02287]
[1732139774901,3.24772,3079.1,3078.7,2.01642929]
[1732139775113,3.24772,3079.1,3078.8,0.10140779]
[1732139775330,3.24772,3079.1,3078.7,1.36599429]
[1732139775331,3.24772,3079.1,3078.9,0.10140779]
[1732139775623,3.24764,3079.2,3079.0,0.10140779]
[1732139775937,3.24771,3079.1,3078.7,1.36599429]
[1732139776233,3.24771,3079.1,3078.8,0.10139401]
[1732139776384,3.24771,3079.1,3078.8,0.10139403]
[1732139776583,3.24771,3079.1,3078.9,0.10139403]
[1732139776926,3.24771,3079.1,3079.0,0.10139403]
[1732139777283,3.24771,3079.1,3078.6,0.7747]
[1732139777586,3.24771,3079.1,3078.7,0.10139646]
[1732139777802,3.24771,3079.1,3078.8,0.10139646]
[1732139777983,3.24771,3079.1,3078.6,4.56178443]
[1732139777984,3.24788,3079.0,3078.9,0.10139646]
[1732139778526,0.55,3079.2,3078.9,0.10139646]
[1732139778827,0.55,3079.2,3078.6,0.7747]
[1732139779022,3.24784,3079.0,3078.7,0.1013938]
[1732139779261,3.24784,3079.0,3078.6,0.7747]
[1732139779383,7.04535,3079.2,3078.8,0.10139593]
[1732139779580,3.79765,3079.2,3078.9,0.10139593]
[1732139779911,3.79765,3079.2,3078.6,4.0229]
[1732139779912,3.24775,3079.1,3078.6,4.0229]
[1732139780229,3.24775,3079.1,3078.7,0.1013958]
[1732139780389,3.79763,3079.2,3078.8,0.1013958]
[1732139780721,3.79763,3079.2,3078.9,0.1013958]
[1732139780910,3.24774,3079.1,3078.6,4.02292]
[1732139781092,3.24774,3079.1,3078.7,0.10139498]
[1732139781301,7.04531,3079.2,3078.8,0.10139498]
[1732139781525,3.79763,3079.2,3078.9,0.10139498]
[1732139781720,3.24771,3079.1,3078.6,4.02292]
[1732139781923,3.24771,3079.1,3078.7,0.10139273]
[1732139782239,3.24771,3079.1,3078.8,0.10139273]
[1732139782531,3.24771,3079.1,3078.6,4.02292]
[1732139782736,3.24771,3079.1,3078.7,0.10139257]
[1732139782921,3.24771,3079.1,3078.8,0.10139257]
[1732139783232,0.55,3079.2,3078.9,0.10139257]
[1732139783525,3.7976,3079.2,3078.7,3.2481]
[1732139783703,3.7976,3079.2,3078.8,0.10139349]
[1732139783905,3.7976,3079.2,3078.7,3.2481]
[1732139784104,3.7976,3079.2,3078.8,0.10139595]
[1732139784343,0.55,3079.2,3078.7,3.2481]
[1732139784513,3.24771,3079.1,3078.8,0.10139592]
[1732139784713,3.24771,3079.1,3078.7,3.2481]
[1732139784940,3.24771,3079.1,3078.8,0.10139446]
[1732139785255,3.24771,3079.1,3078.9,0.10139446]
[1732139785467,3.24771,3079.1,3078.7,3.2481]
[1732139785753,0.43049152,3079.8,3079.0,0.8104]
[1732139786076,0.43049152,3079.8,3079.2,3.24753]
[1732139786077,3.24712,3079.7,3079.2,3.24753]
[1732139786461,3.24712,3079.7,3079.3,0.1013787]
[1732139786614,3.977094,3079.7,3079.3,0.1013787]
[1732139786814,3.24712,3079.7,3079.2,3.24753]
[1732139787653,0.55,3079.6,3079.2,3.24753]
[1732139787954,0.55,3079.6,3079.3,0.10137584]
[1732139788156,0.55,3079.6,3079.2,3.24753]
[1732139790063,3.24738,3079.5,3079.0,0.8104]